lending/lending_fUSD_20240112
["ID","MTS","AMOUNT","RATE_DAILY","PERIOD"]
[311344948,1705065107738,-500.0,0.00025331,2]
[311344949,1705065107747,-500.0,0.00025331,2]
[311344950,1705065107757,-415.69161218,0.00025331,2]
[311344951,1705065107767,-500.0,0.00025331,2]
[311344952,1705065107776,-212.54262208,0.00025331,2]
[311344953,1705065107786,-500.0,0.00025331,2]
[311344954,1705065107796,-166.40996152,0.00025331,2]
[311344955,1705065107805,-532.99826315,0.00025331,2]
[311344956,1705065107816,-500.0,0.00025331,2]
[311344957,1705065107827,-710.1,0.00025331,2]
[311344958,1705065107836,-500.0,0.00025331,2]
[311344959,1705065107846,-500.0,0.00025331,2]
[311344960,1705065107855,-500.0,0.00025331,2]
[311344961,1705065107866,-500.0,0.00025331,2]
[311344962,1705065107875,-500.0,0.00025331,2]
[311344963,1705065107884,-1022.92,0.00025331,2]
[311344964,1705065107894,-1065.11,0.00025331,2]
[311344965,1705065107905,-973.85,0.00025331,2]
[311344966,1705065107915,-596.64,0.00025331,2]
[311344967,1705065107924,-1316.49,0.00025331,2]
[311344968,1705065107933,-565.15,0.00025331,2]
[311344969,1705065107942,-4908.84,0.00025331,2]
[311344970,1705065107952,-567.77,0.00025331,2]
[311344971,1705065107961,-500.0,0.00025331,2]
[311344972,1705065107971,-1555.67,0.00025331,2]
[311344973,1705065107980,-1400.6,0.00025331,5]
[311344974,1705065107989,-1433.76,0.00025331,2]
[311344975,1705065107999,-1359.51,0.00025331,2]
[311344976,1705065108008,-647.67,0.00025331,2]
[311344977,1705065108017,-756.74,0.00025331,2]
[311344978,1705065108027,-1876.2,0.00025331,2]
[311344979,1705065108037,-1309.3,0.00025331,2]
[311344980,1705065108046,-937.63,0.00025331,2]
[311344981,1705065108061,-2066.36,0.00025331,2]
[311344982,1705065108070,-3090.41,0.00025331,2]
[311344983,1705065108079,-660.9,0.00025331,2]
[311344984,1705065108091,-500.0,0.00025331,2]
[311344985,1705065108101,-500.0,0.00025331,2]
[311344986,1705065108112,-500.0,0.00025331,2]
[311344987,1705065108123,-500.0,0.00025331,2]
[311344988,1705065108132,-1935.88,0.00025331,2]
[311344989,1705065108142,-505.19,0.00025331,2]
[311344990,1705065108152,-527.44,0.00025331,2]
[311344991,1705065108163,-500.0,0.00025331,2]
[311344992,1705065108173,-500.0,0.00025331,2]
[311344993,1705065108186,-1258.22,0.00025331,2]
[311344994,1705065108197,-500.0,0.00025331,2]
[311344995,1705065108208,-500.0,0.00025331,2]
[311344996,1705065108219,-500.0,0.00025331,2]
[311344997,1705065108230,-620.89,0.00025331,2]
[311344998,1705065108239,-500.0,0.00025331,2]
[311344999,1705065108251,-993.03,0.00025331,2]
[311345000,1705065108261,-724.59,0.00025331,2]
[311345001,1705065108270,-2000.0,0.00025436,3]
[311345002,1705065108280,-500.0,0.00025473,2]
[311345003,1705065108290,-200.0,0.00025473,2]
[311345004,1705065108300,-800.0,0.00025473,2]
[311345005,1705065108310,-200.0,0.00025473,2]
[311345006,1705065108320,-500.0,0.0002558,2]
[311345007,1705065108331,-460.54,0.0002558,2]
[311345008,1705065108341,-1095.03,0.00025601,2]
[311345009,1705065108351,-2336.53,0.00025601,5]
[311345010,1705065108361,-660.44,0.00025601,2]
[311345011,1705065108372,-4983.08,0.00025601,2]
[311345012,1705065108382,-500.0,0.00025601,2]
[311345013,1705065108392,-6835.31,0.00025601,2]
[311345014,1705065108402,-1968.89,0.00025601,2]
[311345015,1705065108412,-14321.2,0.00025601,2]
[311345016,1705065108422,-549.3,0.00025601,2]
[311345017,1705065108432,-619.15,0.00025601,2]
[311345018,1705065108442,-1403.82,0.00025601,2]
[311345019,1705065108451,-722.98,0.00025601,2]
[311345020,1705065108462,-500.0,0.00025601,2]
[311345021,1705065108473,-607.61,0.00025601,2]
[311345022,1705065108483,-510.07,0.00025601,2]
[311345023,1705065108493,-749.86,0.00025601,2]
[311345024,1705065108503,-3048.94,0.00025601,2]
[311345025,1705065108513,-500.0,0.00025601,2]
[311345026,1705065108523,-500.0,0.00025601,2]
[311345027,1705065108534,-1294.29,0.00025601,2]
[311345028,1705065108545,-984.37,0.00025601,2]
[311345029,1705065108556,-675.45,0.00025601,2]
[311345030,1705065108568,-1709.12,0.00025601,2]
[311345031,1705065108578,-937.07,0.00025601,2]
[311345032,1705065108588,-2370.13,0.00025601,2]
[311345033,1705065108598,-793.03,0.00025601,2]
[311345034,1705065108608,-786.71,0.00025601,2]
[311345035,1705065108618,-1074.66,0.00025601,2]
[311345036,1705065108628,-2000.06,0.00025601,2]
[311345037,1705065108638,-3928.94,0.00025601,2]
[311345038,1705065108647,-1033.75,0.00025601,2]
[311345039,1705065108658,-874.55,0.00025601,2]
[311345040,1705065108669,-1304.48,0.00025601,2]
[311345041,1705065108679,-6963.0,0.00025601,2]
[311345042,1705065108689,-1048.12,0.00025601,2]
[311345043,1705065108698,-500.0,0.00025601,2]
[311345044,1705065108709,-500.0,0.00025601,2]
[311345045,1705065108719,-1205.23,0.00025601,2]
[311345046,1705065108729,-500.0,0.00025601,2]
[311345047,1705065108739,-736.05,0.00025601,2]
[311345048,1705065108749,-500.0,0.00025601,2]
[311345049,1705065108759,-9796.43,0.00025601,2]
[311345050,1705065108769,-2056.42,0.00025601,2]
[311345051,1705065108779,-500.0,0.00025601,2]
[311345052,1705065108789,-600.05,0.00025601,2]
[311345053,1705065108799,-1076.15,0.00025601,2]
[311345054,1705065108809,-500.0,0.00025601,2]
[311345055,1705065108819,-1891.13,0.00025601,2]
[311345056,1705065108830,-591.67051384,0.00025601,2]
[311345057,1705065108840,-2556.24,0.00025601,2]
[311345058,1705065108850,-750.14,0.00025601,2]
[311345059,1705065108860,-2721.6,0.00025601,2]
[311345060,1705065108870,-884.19,0.00025601,2]
[311345061,1705065108881,-2018.21,0.00025601,2]
[311345062,1705065108891,-2134.94,0.00025601,2]
[311345063,1705065108901,-500.0,0.00025601,2]
[311345064,1705065108911,-1493.07,0.00025601,2]
[311345065,1705065108921,-1084.3,0.00025601,2]
[311345066,1705065108930,-612.02,0.00025601,2]
[311345067,1705065108941,-500.0,0.00025601,2]
[311345068,1705065108951,-5673.19,0.00025601,2]
[311345069,1705065108961,-500.0,0.00025601,2]
[311345070,1705065108972,-1028.9,0.00025601,2]
[311345071,1705065108982,-2233.34,0.00025601,2]
[311345072,1705065108991,-710.28,0.00025601,2]
[311345073,1705065109001,-500.0,0.00025601,2]
[311345074,1705065109011,-500.0,0.00025604,2]
[311345075,1705065109021,-500.0,0.00025604,2]
[311345076,1705065109031,-500.0,0.00025604,2]
[311345077,1705065109041,-1431.33,0.00025604,2]
[311345078,1705065109051,-500.0,0.00025604,2]
[311345079,1705065109060,-500.0,0.00025604,2]
[311345080,1705065109070,-500.0,0.00025604,2]
[311345081,1705065109080,-500.0,0.00025604,2]
[311345082,1705065109090,-500.0,0.00025604,2]
[311345083,1705065109099,-500.0,0.00025604,2]
[311345084,1705065109109,-500.0,0.00025604,2]
[311345085,1705065109119,-526.28,0.00025604,2]
[311345086,1705065109129,-500.0,0.00025604,2]
[311345087,1705065109139,-645.8487601,0.00025604,2]
[311345088,1705065109149,-500.0,0.00025604,2]
[311345089,1705065109159,-500.0,0.00025604,2]
[311345090,1705065109168,-500.0,0.00025604,2]
[311345091,1705065109179,-500.0,0.00025604,2]
[311345092,1705065109189,-500.0,0.00025604,2]
[311345093,1705065109199,-543.44,0.00025604,2]
[311345094,1705065109209,-500.0,0.00025604,2]
[311345095,1705065109220,-500.0,0.00025604,2]
[311345096,1705065109230,-500.0,0.00025604,2]
[311345097,1705065109240,-500.0,0.00025604,2]
[311345098,1705065109249,-500.0,0.00025604,2]
[311345099,1705065109260,-553.95,0.00025604,2]
[311345100,1705065109269,-500.0,0.00025604,2]
[311345101,1705065109280,-516.33,0.00025604,2]
[311345102,1705065109291,-586.6,0.00025604,2]
[311345103,1705065109301,-500.0,0.00025604,2]
[311345104,1705065109311,-500.0,0.00025604,2]
[311345105,1705065109320,-500.0,0.00025604,2]
[311345106,1705065109330,-515.42,0.00025604,2]
[311345107,1705065109340,-500.0,0.00025604,2]
[311345108,1705065109350,-500.0,0.00025604,2]
[311345109,1705065109360,-592.8,0.00025604,2]
[311345110,1705065109369,-500.0,0.00025604,2]
[311345111,1705065109379,-500.0,0.00025604,2]
[311345112,1705065109390,-500.0,0.00025604,2]
[311345113,1705065109399,-500.0,0.00025604,2]
[311345114,1705065109410,-500.0,0.00025604,2]
[311345115,1705065109420,-150.0,0.00025604,2]
[311345116,1705065109429,-500.0,0.00025604,2]
[311345117,1705065109439,-500.0,0.00025604,2]
[311345118,1705065109449,-500.0,0.00025604,2]
[311345119,1705065109459,-500.0,0.00025604,2]
[311345120,1705065109470,-500.0,0.00025604,2]
[311345121,1705065109479,-500.0,0.00025604,2]
[311345122,1705065109489,-572.59,0.00025604,2]
[311345123,1705065109498,-500.0,0.00025604,2]
[311345124,1705065109508,-535.83,0.00025604,2]
[311345125,1705065109518,-500.0,0.00025604,2]
[311345126,1705065109527,-500.0,0.00025604,2]
[311345127,1705065109537,-611.41,0.00025604,2]
[311345128,1705065109547,-1479.42,0.00025604,2]
[311345129,1705065109556,-500.0,0.00025604,2]
[311345130,1705065109566,-500.0,0.00025604,2]
[311345131,1705065109576,-1130.95,0.00025604,2]
[311345132,1705065109585,-917.05,0.00025604,2]
[311345133,1705065109595,-3574.26,0.00025604,2]
[311345134,1705065109604,-500.0,0.00025604,2]
[311345135,1705065109614,-526.02,0.00025604,2]
[311345136,1705065109624,-500.0,0.00025604,2]
[311345137,1705065109634,-500.0,0.00025604,2]
[311345138,1705065109644,-514.03,0.00025604,2]
[311345139,1705065109654,-500.0,0.00025604,2]
[311345140,1705065109663,-1199.16,0.00025604,2]
[311345141,1705065109673,-500.0,0.00025604,2]
[311345142,1705065109683,-434.10146821,0.00025604,2]
[311345143,1705065109693,-809.87,0.00025604,2]
[311345144,1705065109702,-500.0,0.00025604,2]
[311345145,1705065109712,-826.13,0.00025604,2]
[311345146,1705065109722,-629.29,0.00025604,2]
[311345147,1705065109733,-2053.17,0.00025604,2]
[311345148,1705065109743,-500.0,0.00025604,2]
[311345149,1705065109753,-500.0,0.00025604,2]
[311345150,1705065109762,-713.26,0.00025604,2]
[311345151,1705065109772,-896.29,0.00025604,2]
[311345152,1705065109782,-1112.52,0.00025604,2]
[311345153,1705065109792,-500.0,0.00025604,2]
[311345154,1705065109801,-1157.27,0.00025604,2]
[311345155,1705065109813,-574.98,0.00025604,2]
[311345156,1705065109825,-597.76,0.00025604,2]
[311345157,1705065109835,-1688.31,0.00025604,2]
[311345158,1705065109845,-500.0,0.00025604,2]
[311345159,1705065110026,-500.0,0.00025604,2]
[311345160,1705065110037,-974.33,0.00025604,2]
[311345161,1705065110046,-644.03,0.00025604,2]
[311345162,1705065110056,-500.0,0.00025604,2]
[311345163,1705065110066,-500.0,0.00025604,2]
[311345164,1705065110076,-500.0,0.00025604,2]
[311345165,1705065110085,-791.75,0.00025604,2]
[311345166,1705065110095,-2017.32,0.00025604,2]
[311345167,1705065110106,-535.6,0.00025604,2]
[311345168,1705065110115,-705.71,0.00025604,2]
[311345169,1705065110125,-655.0,0.00025604,2]
[311345170,1705065110134,-1374.63,0.00025604,2]
[311345171,1705065110144,-1550.52,0.00025604,2]
[311345172,1705065110154,-1473.58,0.00025604,2]
[311345173,1705065110163,-805.25,0.00025604,2]
[311345174,1705065110173,-500.0,0.00025604,2]
[311345175,1705065110183,-1112.34,0.00025604,2]
[311345176,1705065110192,-943.87,0.00025604,2]
[311345177,1705065110202,-565.25,0.00025604,2]
[311345178,1705065110212,-150.0,0.00025604,2]
[311345179,1705065110222,-199.48882671,0.00025604,2]
[311345180,1705065110232,-3783.76,0.00025604,2]
[311345181,1705065110241,-500.0,0.00025604,2]
[311345182,1705065110252,-500.0,0.00025604,2]
[311345183,1705065110261,-500.0,0.00025605,2]
[311345184,1705065110271,-500.0,0.00025605,2]
[311345185,1705065110281,-500.0,0.00025605,2]
[311345186,1705065110291,-491.01,0.00025605,2]
[311345187,1705065110301,-527.36,0.00025605,2]
[311345188,1705065110311,-500.0,0.00025605,2]
[311345189,1705065110321,-500.0,0.00025605,2]
[311345190,1705065110331,-511.53,0.00025605,2]
[311345191,1705065110341,-500.0,0.00025605,2]
[311345192,1705065110351,-500.0,0.00025605,2]
[311345193,1705065110360,-500.0,0.00025605,2]
[311345194,1705065110370,-592.66,0.00025605,2]
[311345195,1705065110379,-500.0,0.00025605,2]
[311345196,1705065110388,-500.0,0.00025605,2]
[311345197,1705065110398,-500.0,0.00025605,2]
[311345198,1705065110407,-645.28628064,0.00025605,2]
[311345199,1705065110417,-500.0,0.00025605,2]
[311345200,1705065110426,-500.0,0.00025605,2]
[311345201,1705065110435,-500.0,0.00025605,2]
[311345202,1705065110445,-500.0,0.00025605,2]
[311345203,1705065110454,-500.0,0.00025605,2]
[311345204,1705065110464,-500.0,0.00025605,2]
[311345205,1705065110474,-500.0,0.00025605,2]
[311345206,1705065110483,-557.22,0.00025605,2]
[311345207,1705065110493,-500.0,0.00025605,2]
[311345208,1705065110502,-500.0,0.00025605,2]
[311345209,1705065110513,-500.0,0.00025605,2]
[311345210,1705065110523,-506.67,0.00025605,2]
[311345211,1705065110533,-555.88,0.00025605,2]
[311345212,1705065110543,-500.0,0.00025605,2]
[311345213,1705065110552,-500.0,0.00025605,2]
[311345214,1705065110562,-500.0,0.00025605,2]
[311345215,1705065110572,-500.0,0.00025605,2]
[311345216,1705065110581,-500.0,0.00025605,2]
[311345217,1705065110590,-710.1,0.00025605,2]
[311345218,1705065110600,-500.0,0.00025605,2]
[311345219,1705065110609,-500.0,0.00025605,2]
[311345220,1705065110619,-500.0,0.00025605,2]
[311345221,1705065110628,-500.0,0.00025605,2]
[311345222,1705065110637,-500.0,0.00025605,2]
[311345223,1705065110647,-1022.92,0.00025605,2]
[311345224,1705065110656,-1065.11,0.00025605,2]
[311345225,1705065110665,-973.85,0.00025605,2]
[311345226,1705065110674,-596.64,0.00025605,2]
[311345227,1705065110683,-1316.49,0.00025605,2]
[311345228,1705065110693,-565.15,0.00025605,2]
[311345229,1705065110702,-4908.84,0.00025605,2]
[311345230,1705065110712,-567.77,0.00025605,2]
[311345231,1705065110722,-500.0,0.00025605,2]
[311345232,1705065110731,-1555.67,0.00025605,2]
[311345233,1705065110740,-1400.6,0.00025605,5]
[311345234,1705065110750,-1433.76,0.00025605,2]
[311345235,1705065110759,-1359.51,0.00025605,2]
[311345236,1705065110768,-647.67,0.00025605,2]
[311345237,1705065110777,-756.74,0.00025605,2]
[311345238,1705065110787,-1876.2,0.00025605,2]
[311345239,1705065110796,-1309.3,0.00025605,2]
[311345240,1705065110806,-937.63,0.00025605,2]
[311345241,1705065110815,-2066.36,0.00025605,2]
[311345242,1705065110824,-3090.41,0.00025605,2]
[311345243,1705065110834,-660.9,0.00025605,2]
[311345244,1705065110844,-500.0,0.00025605,2]
[311345245,1705065110854,-500.0,0.00025605,2]
[311345246,1705065110864,-500.0,0.00025605,2]
[311345247,1705065110873,-500.0,0.00025605,2]
[311345248,1705065110882,-1935.88,0.00025605,2]
[311345249,1705065110892,-505.19,0.00025605,2]
[311345250,1705065110902,-527.44,0.00025605,2]
[311345251,1705065110912,-500.0,0.00025605,2]
[311345252,1705065110921,-500.0,0.00025605,2]
[311345253,1705065110931,-1258.22,0.00025605,2]
[311345254,1705065110940,-500.0,0.00025605,2]
[311345255,1705065110950,-500.0,0.00025605,2]
[311345256,1705065110960,-500.0,0.00025605,2]
[311345257,1705065110970,-620.89,0.00025605,2]
[311345258,1705065110980,-500.0,0.00025605,2]
[311345259,1705065110989,-993.03,0.00025605,2]
[311345260,1705065110998,-724.59,0.00025605,2]
[311345261,1705065111008,-3850.0,0.000257,2]
[311345262,1705065111017,-337.023,0.00025712,2]
[311345263,1705065111026,-945.0,0.00025712,2]
[311345264,1705065111036,-835.0,0.00025712,2]
[311345265,1705065111045,-1851.0,0.00025712,2]
[311345266,1705065111053,-1252.0,0.00025712,2]
[311345267,1705065111063,-1234.0,0.00025712,2]
[311345268,1705065111073,-1931.0,0.00025712,2]
[311345269,1705065111082,-1138.0,0.00025712,2]
[311345270,1705065111091,-507.0,0.00025712,2]
[311345271,1705065111101,-879.0,0.00025712,2]
[311345272,1705065111110,-318.0,0.00025712,2]
[311345273,1705065111119,-2270.0,0.00025718,2]
[311345274,1705065111129,-2396.015,0.00025718,2]
[311345275,1705065111138,-19678.0,0.00025718,2]
[311345276,1705065111148,-2901.0,0.00025718,2]
[311345277,1705065111158,-1028.0,0.00025718,2]
[311345278,1705065111167,-1095.03,0.00025875,2]
[311345279,1705065111176,-2336.53,0.00025875,5]
[311345280,1705065111185,-660.44,0.00025875,2]
[311345281,1705065111194,-4983.08,0.00025875,2]
[311345282,1705065111203,-500.0,0.00025875,2]
[311345283,1705065111213,-6835.31,0.00025875,2]
[311345284,1705065111222,-1968.89,0.00025875,2]
[311345285,1705065111233,-14321.2,0.00025875,2]
[311345286,1705065111242,-549.3,0.00025875,2]
[311345287,1705065111251,-619.15,0.00025875,2]
[311345288,1705065111260,-1403.82,0.00025875,2]
[311345289,1705065111269,-722.98,0.00025875,2]
[311345290,1705065111279,-500.0,0.00025875,2]
[311345291,1705065111288,-607.61,0.00025875,2]
[311345292,1705065111298,-510.07,0.00025875,2]
[311345293,1705065111308,-749.86,0.00025875,2]
[311345294,1705065111318,-3048.94,0.00025875,2]
[311345295,1705065111327,-500.0,0.00025875,2]
[311345296,1705065111337,-500.0,0.00025875,2]
[311345297,1705065111346,-1294.29,0.00025875,2]
[311345298,1705065111356,-984.37,0.00025875,2]
[311345299,1705065111366,-675.45,0.00025875,2]
[311345300,1705065111376,-1709.12,0.00025875,2]
[311345301,1705065111386,-937.07,0.00025875,2]
[311345302,1705065111395,-2370.13,0.00025875,2]
[311345303,1705065111405,-793.03,0.00025875,2]
[311345304,1705065111415,-786.71,0.00025875,2]
[311345305,1705065111425,-1074.66,0.00025875,2]
[311345306,1705065111434,-2000.06,0.00025875,2]
[311345307,1705065111445,-3928.94,0.00025875,2]
[311345308,1705065111455,-1033.75,0.00025875,2]
[311345309,1705065111464,-874.55,0.00025875,2]
[311345310,1705065111474,-1304.48,0.00025875,2]
[311345311,1705065111483,-6963.0,0.00025875,2]
[311345312,1705065111493,-1048.12,0.00025875,2]
[311345313,1705065111502,-500.0,0.00025875,2]
[311345314,1705065111512,-500.0,0.00025875,2]
[311345315,1705065111521,-1205.23,0.00025875,2]
[311345316,1705065111531,-500.0,0.00025875,2]
[311345317,1705065111542,-736.05,0.00025875,2]
[311345318,1705065111552,-9796.43,0.00025875,2]
[311345319,1705065111562,-500.0,0.00025875,2]
[311345320,1705065111575,-2056.42,0.00025875,2]
[311345321,1705065111585,-500.0,0.00025875,2]
[311345322,1705065111595,-600.05,0.00025875,2]
[311345323,1705065111604,-1076.15,0.00025875,2]
[311345324,1705065111613,-500.0,0.00025875,2]
[311345325,1705065111622,-1891.13,0.00025875,2]
[311345326,1705065111633,-2556.24,0.00025875,2]
[311345327,1705065111642,-750.14,0.00025875,2]
[311345328,1705065111653,-2721.6,0.00025875,2]
[311345329,1705065111663,-884.19,0.00025875,2]
[311345330,1705065111672,-2018.21,0.00025875,2]
[311345331,1705065111682,-2134.94,0.00025875,2]
[311345332,1705065111691,-500.0,0.00025875,2]
[311345333,1705065111700,-1493.07,0.00025875,2]
[311345334,1705065111710,-1084.3,0.00025875,2]
[311345335,1705065111719,-612.02,0.00025875,2]
[311345336,1705065111730,-500.0,0.00025875,2]
[311345337,1705065111739,-5673.19,0.00025875,2]
[311345338,1705065111749,-500.0,0.00025875,2]
[311345339,1705065111758,-1028.9,0.00025875,2]
[311345340,1705065111767,-2233.34,0.00025875,2]
[311345341,1705065111777,-710.28,0.00025875,2]
[311345342,1705065111787,-500.0,0.00025878,2]
[311345343,1705065111796,-536.01851964,0.00025878,2]
[311345344,1705065111806,-500.0,0.00025878,2]
[311345345,1705065111816,-1431.33,0.00025878,2]
[311345346,1705065111825,-500.0,0.00025878,2]
[311345347,1705065111836,-500.0,0.00025878,2]
[311345348,1705065111846,-227.66434913,0.00025878,2]
[311345349,1705065111856,-500.0,0.00025878,2]
[311345350,1705065111867,-500.0,0.00025878,2]
[311345351,1705065111876,-500.0,0.00025878,2]
[311345352,1705065111886,-500.0,0.00025878,2]
[311345353,1705065111897,-526.28,0.00025878,2]
[311345354,1705065111907,-500.0,0.00025878,2]
[311345355,1705065111916,-230.51414452,0.00025878,2]
[311345356,1705065111925,-512.6073171,0.00025878,2]
[311345357,1705065111934,-500.0,0.00025878,2]
[311345358,1705065111943,-500.0,0.00025878,2]
[311345359,1705065111953,-500.0,0.00025878,2]
[311345360,1705065111962,-543.44,0.00025878,2]
[311345361,1705065111973,-500.0,0.00025878,2]
[311345362,1705065111982,-500.0,0.00025878,2]
[311345363,1705065111991,-474.35423133,0.00025878,2]
[311345364,1705065112000,-500.0,0.00025878,2]
[311345365,1705065112010,-500.0,0.00025878,2]
[311345366,1705065112019,-553.95,0.00025878,2]
[311345367,1705065112029,-500.0,0.00025878,2]
[311345368,1705065112038,-516.33,0.00025878,2]
[311345369,1705065112047,-586.6,0.00025878,2]
[311345370,1705065112056,-500.0,0.00025878,2]
[311345371,1705065112066,-500.0,0.00025878,2]
[311345372,1705065112076,-500.0,0.00025878,2]
[311345373,1705065112086,-515.42,0.00025878,2]
[311345374,1705065112095,-500.0,0.00025878,2]
[311345375,1705065112105,-500.0,0.00025878,2]
[311345376,1705065112114,-592.8,0.00025878,2]
[311345377,1705065112124,-500.0,0.00025878,2]
[311345378,1705065112134,-500.0,0.00025878,2]
[311345379,1705065112143,-500.0,0.00025878,2]
[311345380,1705065112152,-500.0,0.00025878,2]
[311345381,1705065112161,-425.35789183,0.00025878,2]
[311345382,1705065112170,-150.0,0.00025878,2]
[311345383,1705065112179,-500.0,0.00025878,2]
[311345384,1705065112189,-500.0,0.00025878,2]
[311345385,1705065112198,-500.0,0.00025878,2]
[311345386,1705065112208,-500.0,0.00025878,2]
[311345387,1705065112217,-500.0,0.00025878,2]
[311345388,1705065112227,-412.03108984,0.00025878,2]
[311345389,1705065112236,-572.59,0.00025878,2]
[311345390,1705065112245,-500.0,0.00025878,2]
[311345391,1705065112254,-535.83,0.00025878,2]
[311345392,1705065112263,-500.0,0.00025878,2]
[311345393,1705065112272,-155.96,0.00025878,2]
[311345394,1705065112281,-611.41,0.00025878,2]
[311345395,1705065112290,-1479.42,0.00025878,2]
[311345396,1705065112299,-500.0,0.00025878,2]
[311345397,1705065112309,-500.0,0.00025878,2]
[311345398,1705065112318,-1130.95,0.00025878,2]
[311345399,1705065112327,-917.05,0.00025878,2]
[311345400,1705065112337,-3574.26,0.00025878,2]
[311345401,1705065112346,-500.0,0.00025878,2]
[311345402,1705065112355,-526.02,0.00025878,2]
[311345403,1705065112364,-498.63544749,0.00025878,2]
[311345404,1705065112373,-500.0,0.00025878,2]
[311345405,1705065112382,-514.03,0.00025878,2]
[311345406,1705065112392,-500.0,0.00025878,2]
[311345407,1705065112400,-1199.16,0.00025878,2]
[311345408,1705065112410,-500.0,0.00025878,2]
[311345409,1705065112420,-809.87,0.00025878,2]
[311345410,1705065112429,-500.0,0.00025878,2]
[311345411,1705065112439,-826.13,0.00025878,2]
[311345412,1705065112448,-629.29,0.00025878,2]
[311345413,1705065112458,-2053.17,0.00025878,2]
[311345414,1705065112468,-500.0,0.00025878,2]
[311345415,1705065112478,-500.0,0.00025878,2]
[311345416,1705065112487,-713.26,0.00025878,2]
[311345417,1705065112497,-896.29,0.00025878,2]
[311345418,1705065112507,-1112.52,0.00025878,2]
[311345419,1705065112516,-500.0,0.00025878,2]
[311345420,1705065112526,-1157.27,0.00025878,2]
[311345421,1705065112535,-574.98,0.00025878,2]
[311345422,1705065112546,-597.76,0.00025878,2]
[311345423,1705065112555,-1688.31,0.00025878,2]
[311345424,1705065112565,-380.38857164,0.00025878,2]
[311345425,1705065112574,-500.0,0.00025878,2]
[311345426,1705065112585,-974.33,0.00025878,2]
[311345427,1705065112595,-644.03,0.00025878,2]
[311345428,1705065112604,-500.0,0.00025878,2]
[311345429,1705065112613,-500.0,0.00025878,2]
[311345430,1705065112623,-500.0,0.00025878,2]
[311345431,1705065112633,-791.75,0.00025878,2]
[311345432,1705065112643,-2017.32,0.00025878,2]
[311345433,1705065112652,-535.6,0.00025878,2]
[311345434,1705065112662,-705.71,0.00025878,2]
[311345435,1705065112671,-655.0,0.00025878,2]
[311345436,1705065112682,-1374.63,0.00025878,2]
[311345437,1705065112692,-1550.52,0.00025878,2]
[311345438,1705065112702,-1473.58,0.00025878,2]
[311345439,1705065112712,-805.25,0.00025878,2]
[311345440,1705065112723,-500.0,0.00025878,2]
[311345441,1705065112733,-1112.34,0.00025878,2]
[311345442,1705065112742,-943.87,0.00025878,2]
[311345443,1705065112751,-565.25,0.00025878,2]
[311345444,1705065112761,-3783.76,0.00025878,2]
[311345445,1705065112770,-573.30185092,0.00025878,2]
[311345446,1705065112779,-500.0,0.00025878,2]
[311345447,1705065112788,-500.0,0.00025879,2]